fUST/lending_fUST_20250925
["ID","MTS","AMOUNT","RATE_DAILY","PERIOD"]
[387495874,1758744655751,-1122.47,0.000323,7]
[387495876,1758744655760,-1346.9203822,0.000323,120]
[387495878,1758744655770,-544.0,0.000323,120]
[387495880,1758744655779,-416.33695528,0.000323,120]
[387495882,1758744655789,-1281.45301201,0.000323,120]
[387495884,1758744655799,-190.83695568,0.000323,120]
[387495886,1758744655808,-3606.57611346,0.000323,120]
[387495888,1758744655817,-272.59,0.00032328,20]
[387495890,1758744655827,-182.82,0.00032371,60]
[387495892,1758744655836,-379.05703632,0.000325,120]
[387495894,1758744655845,-1346.9203822,0.000326,120]
[387495896,1758744655855,-544.0,0.000326,120]
[387495898,1758744655864,-416.33695528,0.000326,120]
[387495900,1758744655874,-1281.45301201,0.000326,120]
[387495902,1758744655883,-190.83695568,0.000326,120]
[387495904,1758744655893,-3606.57611346,0.000326,120]
[387495906,1758744655902,-162.2253934,0.000327,30]
[387495908,1758744655911,-3499.2147221,0.00032735,2]
[387495909,1758744655921,-13497.6835795,0.00032761,2]
[387495911,1758744655931,-2540.27173569,0.00032762,19]
[387495913,1758744655940,-156.0,0.000328,120]
[387495915,1758744655949,-3958.46,0.000328,2]
[387495917,1758744655958,-805.09,0.00032876,120]
[387495919,1758744655967,-1500.0,0.00032877,2]
[387495921,1758744655977,-471.22,0.00032877,10]
[387495930,1758744656058,-898.58,0.00032877,10]
[387495932,1758744656068,-748.82,0.00032877,10]
[387495934,1758744656078,-624.02,0.00032877,10]
[387495936,1758744656087,-500.0,0.00032877,7]
[387495938,1758744656096,-500.0,0.00032877,7]
[387495940,1758744656107,-500.0,0.00032877,7]
[387495942,1758744656117,-500.0,0.00032877,7]
[387495944,1758744656126,-95.36066914,0.00032877,7]
[387495953,1758744656197,-404.63933086,0.00032877,7]
[387495955,1758744656209,-500.0,0.00032877,7]
[387495957,1758744656218,-500.0,0.00032877,7]
[387495958,1758744656227,-500.0,0.00032877,7]
[387495960,1758744656236,-500.0,0.00032877,7]
[387495962,1758744656245,-500.0,0.00032877,7]
[387495964,1758744656254,-374.02244892,0.00032877,7]
[387495966,1758744656264,-500.0,0.00032877,7]
[387495968,1758744656273,-500.0,0.00032877,7]
[387495970,1758744656283,-500.0,0.00032877,7]
[387495972,1758744656293,-500.0,0.00032877,7]
[387495974,1758744656302,-500.0,0.00032877,7]
[387495975,1758744656311,-500.0,0.00032877,7]
[387495976,1758744656321,-500.0,0.00032877,2]
[387495977,1758744656330,-1087.22584248,0.00033,2]
[387495978,1758744656339,-11185.74015194,0.00033,2]
[387495979,1758744656349,-528855.25595,0.00033,2]
[387495980,1758744656359,-1346.9203822,0.00033,120]
[387495981,1758744656368,-544.0,0.00033,120]
[387495982,1758744656377,-416.33695528,0.00033,120]
[387495983,1758744656388,-1281.45301201,0.00033,120]
[387495984,1758744656397,-3606.57611346,0.00033,120]
[387495985,1758744656407,-532.2324375,0.00033,120]
[387495986,1758744656416,-151.0,0.00033,7]
[387495987,1758744656426,-151.0,0.00033,7]
[387495988,1758744656436,-151.0,0.00033,7]
[387495989,1758744656446,-190.0,0.00033,7]
[387495990,1758744656456,-151.0,0.00033,7]
[387495991,1758744656466,-151.0,0.00033,7]
[387495992,1758744656476,-151.0,0.00033,7]
[387495993,1758744656486,-151.0,0.00033,7]
[387495994,1758744656495,-151.0,0.00033,7]
[387495995,1758744656505,-151.0,0.00033,7]
[387495996,1758744656515,-152.519859,0.00033,7]
[387495997,1758744656525,-151.0,0.00033,7]
[387495998,1758744656534,-151.0,0.00033,7]
[387495999,1758744656544,-151.0,0.00033,7]
[387496000,1758744656553,-151.0,0.00033,7]
[387496001,1758744656563,-206.628109,0.00033,7]
[387496002,1758744656572,-151.0,0.00033,7]
[387496003,1758744656582,-151.0,0.00033,7]
[387496004,1758744656591,-151.0,0.00033,7]
[387496005,1758744656600,-151.0,0.00033,7]
[387496006,1758744656610,-151.0,0.00033,7]
[387496007,1758744656620,-269.278613,0.00033,7]
[387496008,1758744656630,-269.278613,0.00033,7]
[387496009,1758744656639,-155.91362,0.00033,7]
[387496011,1758744656649,-269.278613,0.00033,7]
[387496013,1758744656658,-155.91362,0.00033,7]
[387496015,1758744656667,-269.278613,0.00033,7]
[387496017,1758744656677,-155.91362,0.00033,7]
[387496018,1758744656686,-155.91362,0.00033,7]
[387496020,1758744656696,-151.0,0.00033,7]
[387496022,1758744656705,-151.0,0.00033,7]
[387496024,1758744656715,-151.0,0.00033,7]
[387496026,1758744656725,-282.067784,0.00033,7]
[387496028,1758744656734,-151.0,0.00033,7]
[387496030,1758744656744,-151.0,0.00033,7]
[387496032,1758744656753,-151.0,0.00033,7]
[387496034,1758744656762,-151.0,0.00033,7]
[387496036,1758744656771,-176.388323,0.00033,7]
[387496038,1758744656781,-216.434772,0.00033,7]
[387496040,1758744656793,-151.0,0.00033,7]
[387496043,1758744656803,-151.0,0.00033,7]
[387496044,1758744656813,-151.0,0.00033,7]
[387496046,1758744656823,-151.0,0.00033,7]
[387496048,1758744656834,-153.09279,0.00033,7]
[387496050,1758744656843,-151.0,0.00033,7]
[387496052,1758744656853,-151.0,0.00033,7]
[387496054,1758744656862,-151.0,0.00033,7]
[387496056,1758744656872,-151.0,0.00033,7]
[387496058,1758744656882,-151.0,0.00033,7]
[387496060,1758744656892,-151.0,0.00033,7]
[387496063,1758744656902,-151.0,0.00033,7]
[387496064,1758744656916,-151.0,0.00033,7]
[387496067,1758744656926,-151.0,0.00033,7]
[387496069,1758744656936,-263.221685,0.00033,7]
[387496070,1758744656945,-151.0,0.00033,7]
[387496072,1758744656955,-156.709345,0.00033,7]
[387496074,1758744656965,-151.0,0.00033,7]
[387496076,1758744656975,-151.0,0.00033,7]
[387496078,1758744656984,-455.986716,0.00033,7]
[387496080,1758744656996,-455.986716,0.00033,7]
[387496082,1758744657005,-455.986716,0.00033,7]
[387496084,1758744657015,-455.986716,0.00033,7]
[387496086,1758744657025,-865.424692,0.00033,7]
[387496088,1758744657035,-865.424692,0.00033,7]
[387496090,1758744657044,-865.424692,0.00033,7]
[387496092,1758744657054,-865.424692,0.00033,7]
[387496094,1758744657064,-151.0,0.00033,7]
[387496096,1758744657073,-532.2324375,0.00033,7]
[387496098,1758744657083,-151.0,0.00033,7]
[387496101,1758744657092,-151.0,0.00033,7]
[387496102,1758744657102,-151.0,0.00033,7]
[387496105,1758744657111,-151.0,0.00033,7]
[387496106,1758744657121,-151.0,0.00033,7]
[387496109,1758744657130,-151.0,0.00033,7]
[387496111,1758744657140,-424.415439,0.00033,7]
[387496113,1758744657149,-424.415439,0.00033,7]
[387496115,1758744657159,-424.415439,0.00033,7]
[387496117,1758744657168,-424.415439,0.00033,7]
[387496119,1758744657177,-151.0,0.00033,7]
[387496121,1758744657186,-151.0,0.00033,7]
[387496123,1758744657196,-151.0,0.00033,7]
[387496125,1758744657208,-202.279907,0.00033,7]
[387496127,1758744657218,-151.0,0.00033,7]
[387496129,1758744657227,-151.0,0.00033,7]
[387496130,1758744657237,-433.755438,0.00033,7]
[387496132,1758744657247,-151.0,0.00033,7]
[387496134,1758744657256,-433.755438,0.00033,7]
[387496136,1758744657265,-167.396164,0.00033,7]
[387496138,1758744657275,-433.755438,0.00033,7]
[387496140,1758744657285,-433.755438,0.00033,7]
[387496143,1758744657296,-151.0,0.00033,7]
[387496145,1758744657305,-151.0,0.00033,7]
[387496146,1758744657315,-151.0,0.00033,7]
[387496149,1758744657324,-151.0,0.00033,7]
[387496150,1758744657334,-151.0,0.00033,7]
[387496153,1758744657343,-151.0,0.00033,7]
[387496154,1758744657353,-151.0,0.00033,7]
[387496156,1758744657363,-151.0,0.00033,7]
[387496158,1758744657372,-151.0,0.00033,7]
[387496160,1758744657381,-151.0,0.00033,7]
[387496162,1758744657391,-272.59,0.00033013,21]
[387496164,1758744657400,-978.0,0.00033083,2]
[387496166,1758744657409,-2159.0,0.00033083,2]
[387496168,1758744657418,-632.0,0.00033083,2]
[387496170,1758744657427,-316.00240032,0.00033151,2]
[387496370,1758744659462,-0.03324238,0.00019177,2]
[387496372,1758744659473,-352.14524183,0.00019177,2]
[387496374,1758744659484,-147.82151579,0.00019177,2]
[387496376,1758744659494,-151.0,0.000249,7]
[387496378,1758744659505,-196.799894,0.000249,7]
[387496380,1758744659514,-151.0,0.000249,7]
[387496382,1758744659524,-151.0,0.000249,7]
[387496384,1758744659533,-151.0,0.000249,7]
[387496386,1758744659542,-196.799894,0.000249,7]
[387496388,1758744659553,-151.0,0.00029226,7]
[387496390,1758744659562,-196.799894,0.00029226,7]
[387496392,1758744659572,-151.0,0.00029226,7]
[387496394,1758744659581,-151.0,0.00029226,7]
[387496396,1758744659591,-151.0,0.00029226,7]
[387496398,1758744659601,-344.13518701,0.0002944,7]
[387496400,1758744659610,-151.0,0.0002944,7]
[387496402,1758744659620,-151.0,0.0002944,7]
[387496404,1758744659630,-196.799894,0.0002944,7]
[387496406,1758744659639,-151.0,0.0002944,7]
[387496408,1758744659648,-151.0,0.0002944,7]
[387496410,1758744659658,-151.0,0.0002944,7]
[387496412,1758744659667,-532.2324375,0.000318,30]
[387496414,1758744659676,-151.0,0.00033,7]
[387496416,1758744659685,-151.0,0.00033,7]
[387496418,1758744659695,-151.0,0.00033,7]
[387496420,1758744659704,-196.799894,0.00033,7]
[387496422,1758744659713,-151.0,0.00033,7]
[387496424,1758744659723,-151.0,0.00033,7]
[387496426,1758744659733,-183.99759968,0.00033151,2]
[387496428,1758744659742,-300.0,0.000333,120]
[387496430,1758744659751,-1346.9203822,0.000333,120]
[387496432,1758744659761,-544.0,0.000333,120]
[387496434,1758744659770,-416.33695528,0.000333,120]
[387496436,1758744659779,-1281.45301201,0.000333,120]
[387496438,1758744659788,-3606.57611346,0.000333,120]
[387496440,1758744659797,-24.7546365,0.00033371,60]
[387496470,1758744660074,-480.0,0.00019178,2]
[387496472,1758744660085,-480.0,0.00019178,2]
[387496474,1758744660095,-480.0,0.00019178,2]
[387496476,1758744660104,-151.0,0.000249,7]
[387496478,1758744660114,-196.799894,0.000249,7]
[387496480,1758744660123,-0.14155966,0.000249,7]
[387496482,1758744660135,-196.65833434,0.000249,7]
[387496484,1758744660144,-196.799894,0.00029226,7]
[387496486,1758744660154,-162.01091,0.00029226,7]
[387496488,1758744660163,-196.799894,0.00029226,7]
[387496490,1758744660173,-196.799894,0.00029226,7]
[387496492,1758744660183,-196.799894,0.0002944,7]
[387496494,1758744660192,-196.799894,0.0002944,7]
[387496496,1758744660206,-196.799894,0.0002944,7]
[387496498,1758744660216,-162.2253934,0.000327,30]
[387496500,1758744660225,-520.01,0.00032877,10]
[387496502,1758744660235,-196.799894,0.00033,7]
[387496504,1758744660245,-196.799894,0.00033,7]
[387496506,1758744660254,-196.799894,0.00033,7]
[387496508,1758744660264,-265.8194635,0.00033371,60]
[387496510,1758744660274,-500.0,0.00033425,2]
[387496512,1758744660283,-1040119.80724701,0.0003344,7]
[387496514,1758744660295,-131749.49495214,0.0003344,7]
[387496516,1758744660306,-1430.34479366,0.0003344,7]
[387496519,1758744660323,-9647.198677,0.0003344,7]
[387496521,1758744660333,-3690.68518701,0.0003344,7]
[387496523,1758744660344,-624.77194831,0.0003344,7]
[387496526,1758744660356,-8325.87631815,0.0003344,7]
[387496528,1758744660367,-21219.80589764,0.0003344,7]
[387496530,1758744660379,-383.01497908,0.0003344,7]
[387496532,1758744660388,-151.0,0.0003344,7]
[387496534,1758744660397,-151.0,0.0003344,7]
[387496536,1758744660407,-151.0,0.0003344,7]
[387496538,1758744660415,-151.0,0.0003344,7]
[387496540,1758744660425,-151.0,0.0003344,7]
[387496542,1758744660436,-151.0,0.0003344,7]
[387496544,1758744660445,-151.0,0.0003344,7]
[387496546,1758744660454,-151.0,0.0003344,7]
[387496548,1758744660464,-288.639159,0.0003344,7]
[387496557,1758744660539,-151.0,0.0003344,7]
[387496559,1758744660549,-151.0,0.0003344,7]
[387496562,1758744660559,-151.0,0.0003344,7]
[387496563,1758744660568,-188.895856,0.0003344,7]
[387496565,1758744660578,-151.0,0.0003344,7]
[387496567,1758744660587,-151.0,0.0003344,7]
[387496570,1758744660597,-151.0,0.0003344,7]
[387496571,1758744660607,-155.91362,0.0003344,7]
[387496573,1758744660617,-269.278613,0.0003344,7]
[387496575,1758744660627,-155.91362,0.0003344,7]
[387496577,1758744660638,-155.91362,0.0003344,7]
[387496579,1758744660648,-269.278613,0.0003344,7]
[387496581,1758744660657,-155.91362,0.0003344,7]
[387496583,1758744660666,-151.0,0.0003344,7]
[387496585,1758744660676,-151.0,0.0003344,7]
[387496587,1758744660685,-151.0,0.0003344,7]
[387496589,1758744660695,-151.0,0.0003344,7]
[387496591,1758744660705,-151.0,0.0003344,7]
[387496593,1758744660715,-151.0,0.0003344,7]
[387496595,1758744660724,-151.0,0.0003344,7]
[387496597,1758744660734,-151.0,0.0003344,7]
[387496599,1758744660743,-151.0,0.0003344,7]
[387496601,1758744660753,-157.116771,0.0003344,7]
[387496603,1758744660762,-151.0,0.0003344,7]
[387496605,1758744660772,-151.0,0.0003344,7]
[387496607,1758744660781,-262.66069,0.0003344,7]
[387496609,1758744660791,-151.0,0.0003344,7]
[387496611,1758744660801,-158.682786,0.0003344,7]
[387496613,1758744660811,-151.0,0.0003344,7]
[387496615,1758744660820,-151.0,0.0003344,7]
[387496617,1758744660830,-151.0,0.0003344,7]
[387496619,1758744660839,-151.0,0.0003344,7]
[387496621,1758744660849,-151.0,0.0003344,7]
[387496623,1758744660858,-455.986716,0.0003344,7]
[387496625,1758744660867,-455.986716,0.0003344,7]
[387496627,1758744660877,-455.986716,0.0003344,7]
[387496629,1758744660887,-455.986709,0.0003344,7]
[387496631,1758744660896,-151.0,0.0003344,7]
[387496633,1758744660905,-167.216464,0.0003344,7]
[387496635,1758744660915,-151.0,0.0003344,7]
[387496637,1758744660924,-151.0,0.0003344,7]
[387496639,1758744660933,-151.0,0.0003344,7]
[387496641,1758744660944,-151.0,0.0003344,7]
[387496643,1758744660954,-424.415439,0.0003344,7]
[387496645,1758744660963,-424.415439,0.0003344,7]
[387496647,1758744660973,-424.415439,0.0003344,7]
[387496649,1758744660983,-424.415439,0.0003344,7]
[387496651,1758744660992,-151.0,0.0003344,7]
[387496653,1758744661002,-151.0,0.0003344,7]
[387496655,1758744661011,-151.0,0.0003344,7]
[387496657,1758744661020,-151.0,0.0003344,7]
[387496659,1758744661030,-151.0,0.0003344,7]
[387496661,1758744661040,-433.755438,0.0003344,7]
[387496663,1758744661049,-433.755438,0.0003344,7]
[387496665,1758744661059,-433.755438,0.0003344,7]
[387496667,1758744661068,-433.755435,0.0003344,7]
[387496669,1758744661077,-151.0,0.0003344,7]
[387496671,1758744661087,-151.0,0.0003344,7]
[387496673,1758744661096,-151.0,0.0003344,7]
[387496675,1758744661107,-151.0,0.0003344,7]
[387496677,1758744661116,-282.81868,0.0003344,7]
[387496679,1758744661125,-151.0,0.0003344,7]
[387496681,1758744661134,-151.0,0.0003344,7]
[387496683,1758744661144,-151.0,0.0003344,7]
[387496685,1758744661154,-151.0,0.0003344,7]
[387496687,1758744661163,-151.0,0.0003344,7]
[387496688,1758744661172,-151.0,0.0003344,7]
[387496690,1758744661182,-151.0,0.0003344,7]
[387496692,1758744661193,-196.799894,0.0003344,7]
[387496695,1758744661212,-151.0,0.0003344,7]
[387496697,1758744661221,-270.586035,0.0003344,7]
[387496699,1758744661231,-196.799894,0.0003344,7]
[387496701,1758744661241,-196.799894,0.0003344,7]
[387496703,1758744661252,-196.799884,0.0003344,7]
[387496705,1758744661262,-162.2253934,0.00033522,30]
[387496707,1758744661273,-162.2253934,0.00033522,30]
[387496709,1758744661282,-162.2253934,0.00033522,30]
[387496711,1758744661292,-161.7639229,0.00033522,30]
[387496712,1758744661301,-307.1761053,0.00033542,30]
[387496714,1758744661310,-500.0,0.0003355,7]
[387496716,1758744661320,-780.7803413,0.00033596,2]
[387496718,1758744661329,-1281.45301201,0.000336,120]
[387496720,1758744661339,-3606.57611346,0.000336,120]
[387496722,1758744661349,-3011.7402987,0.00033623,2]
[387496724,1758744661358,-1895.96351999,0.00033629,2]
[387496727,1758744661370,-108.40648001,0.00033629,2]
[387496729,1758744661380,-272.59,0.00033698,22]
[387496731,1758744661390,-500.0,0.00033699,2]
[387496733,1758744661400,-255.59425,0.00033793,2]
[387496735,1758744661409,-2540.27173569,0.00033834,21]
[387496737,1758744661418,-500.0,0.00033973,2]
[387496739,1758744661427,-1628.06,0.00034,7]
[387496741,1758744661437,-300.0,0.00034,120]
[387496743,1758744661446,-1281.45301201,0.00034,120]
[387496745,1758744661455,-3606.57611346,0.00034,120]
[387496747,1758744661464,-532.2324375,0.00034,120]
[387496749,1758744661474,-1589.005,0.00034132,42]
[387496751,1758744661483,-788.8414543,0.00034204,30]
[387496753,1758744661492,-5035.61558675,0.00034216,48]
[387496755,1758744661501,-390.3504546,0.00034236,30]
[387496757,1758744661511,-390.3504546,0.00034236,30]
[387496759,1758744661521,-500.0,0.00034247,2]
[387496761,1758744661530,-1281.45301201,0.000343,120]
[387496763,1758744661539,-3606.57611346,0.000343,120]
[387496765,1758744661548,-272.59,0.00034383,23]
[387496767,1758744661557,-3958.46,0.000344,14]
[387496769,1758744661567,-289.10309886,0.00034521,2]
[387496771,1758744661576,-1281.45301201,0.000347,120]
[387496773,1758744661584,-3606.57611346,0.000347,120]
[387496774,1758744661594,-1350.46262222,0.00034728,12]
[387496777,1758744661603,-805.09,0.00034794,120]
[387496778,1758744661613,-2540.27173569,0.00034906,23]
[387496781,1758744661623,-10645.76872257,0.00035,2]
[387496783,1758744661632,-1818.72161229,0.00035,2]
[387496785,1758744661642,-2227.34115059,0.00035,20]
[387496787,1758744661652,-160.0,0.00035,14]
[387496789,1758744661661,-1281.45301201,0.00035,120]
[387496791,1758744661671,-3606.57611346,0.00035,120]
[387496793,1758744661681,-272.59,0.00035068,24]
[387496795,1758744661690,-200.0,0.00035092,120]
[387496797,1758744661700,-155.0153554,0.0003517,30]
[387496799,1758744661709,-500.0,0.00035194,7]
[387496801,1758744661719,-390.3504546,0.00035195,30]
[387496803,1758744661729,-390.3504546,0.00035195,30]
[387496804,1758744661738,-390.3504546,0.00035195,30]
[387496806,1758744661747,-891.100833,0.00035195,30]
[387496808,1758744661758,-1033.6662942,0.00035456,2]
[387496816,1758744661825,-2254.91,0.00035497,2]
[387496818,1758744661835,-3000.0,0.000355,20]
[387496820,1758744661844,-480.86737035,0.00035616,2]
[387496822,1758744661854,-272.59,0.00035753,25]
[387496824,1758744661863,-156.0,0.000358,120]
[387496826,1758744661872,-2540.27173569,0.00035978,26]
[387496828,1758744661882,-1001.67623947,0.00036,2]
[387496830,1758744661891,-300.0,0.00036,120]
[387496832,1758744661901,-202.99227289,0.0003621,2]
[387496834,1758744661910,-264.03580082,0.0003624,2]
[387496836,1758744661920,-272.59,0.00036438,26]
[387496838,1758744661931,-52704.23425395,0.0003644,7]
[387496841,1758744661943,-1140.22764707,0.0003644,7]
[387499255,1758744827180,-161.86580021,0.00019177,2]
[387499256,1758744830281,-138.13419979,0.00019177,2]
[387499257,1758744830305,-98.26108141,0.00019177,2]
[387499258,1758744834562,-152.0,0.00019177,2]
[387499259,1758744837405,-249.73891859,0.00019177,2]
[387499260,1758744837429,-154.77579608,0.00019177,2]
[387499261,1758744837451,-44.98273213,0.00019177,2]
[387499262,1758744839844,-157.80113774,0.00019177,2]
[387499263,1758744911573,-286.18508772,0.00019177,2]
[387499264,1758744980513,155.0,0.00024,120]
[387499265,1758744981884,155.0,0.000273,120]
[387499266,1758745005228,-279.0,0.00019177,2]
[387499267,1758745005255,-300.0,0.00019177,2]
[387499268,1758745005283,-300.0,0.00019177,2]
[387499269,1758745005310,-1200.0,0.00019177,2]
[387499270,1758745005338,-286.58975418,0.00019177,2]
[387499271,1758745005368,-167.6600721,0.00019177,2]
[387499272,1758745005398,-569.62709602,0.00019177,2]
[387499273,1758745019509,188.3780556,0.00018202,2]
[387499274,1758745024581,-1165.765,0.00019177,2]
[387499275,1758745031180,-260.36294871,0.00019177,2]
[387499276,1758745033223,-152.0,0.00019177,2]
[387499277,1758745093454,7668.48,0.00019177,2]
[387499278,1758745100829,-7331.24241648,0.00019177,2]
[387499279,1758745100970,-10000.01,0.00019177,2]
[387499280,1758745101108,-10000.01,0.00019177,2]
[387499281,1758745101241,-3946.27685736,0.00019177,2]
[387499282,1758745143569,300.0,0.00019176,2]
[387499283,1758745202857,300.0,0.00019176,2]
[387499284,1758745262892,300.0,0.00019176,2]
[387499285,1758745323551,300.0,0.00019176,2]
[387499286,1758745336635,258.77828614,0.00018603,2]
[387499287,1758745350687,336.9259129,0.00018279,2]
[387499288,1758745383830,278.0,0.00019176,2]
[387499289,1758745442911,300.0,0.00019176,2]
[387499290,1758745451743,4742.2181664,0.00018279,2]
[387499291,1758745512394,2884.08763456,0.00018279,2]
[387499292,1758745512420,17124.17662854,0.00018279,2]
[387499293,1758745521305,-87.63705129,0.00019177,2]
[387499294,1758745521335,-385.76631171,0.00019177,2]
[387499295,1758745521367,-500.0,0.00019177,2]
[387499296,1758745521399,-500.0,0.00019177,2]
[387499297,1758745521429,-244.03238251,0.00019177,2]
[387499298,1758745521460,-500.0,0.00019177,2]
[387499299,1758745521490,-500.0,0.00019177,2]
[387499300,1758745521521,-500.0,0.00019177,2]
[387499301,1758745521556,-500.0,0.00019177,2]
[387499302,1758745521586,-500.0,0.00019177,2]
[387499303,1758745521617,-500.0,0.00019177,2]
[387499304,1758745521648,-65.13850898,0.00019177,2]
[387499305,1758745521860,-434.86149102,0.00019177,2]
[387499306,1758745521890,-500.0,0.00019177,2]
[387499307,1758745521916,-500.0,0.00019177,2]
[387499308,1758745521943,-500.0,0.00019177,2]
[387499309,1758745521968,-500.0,0.00019177,2]
[387499310,1758745521994,-500.0,0.00019177,2]
[387499311,1758745522022,-500.0,0.00019177,2]
[387499312,1758745522050,-500.0,0.00019177,2]
[387499313,1758745522076,-500.0,0.00019177,2]
[387499314,1758745522100,-500.0,0.00019177,2]
[387499315,1758745522237,-500.0,0.00019177,2]
[387499316,1758745522269,-500.0,0.00019177,2]
[387499317,1758745522301,-500.0,0.00019177,2]
[387499318,1758745522331,-500.0,0.00019177,2]
[387499319,1758745522364,-210.01888918,0.00019177,2]
[387499320,1758745522396,-500.0,0.00019177,2]
[387499321,1758745522428,-500.0,0.00019177,2]
[387499336,1758745607079,6254.56624727,0.00019078,2]
[387499339,1758745675816,3745.44375273,0.00018267,2]
[387499340,1758745675838,10000.01,0.00018267,2]
[387499341,1758745675860,10000.01,0.00018267,2]
[387499342,1758745675882,10000.01,0.00018267,2]
[387499343,1758745675904,2668.67851227,0.00018267,2]
[387499354,1758745743567,1000.0,0.00018184,2]
[387499355,1758745747778,4376.1529582,0.00018184,2]
[387499356,1758745793242,1955.17852953,0.00018184,2]
[387499357,1758745793265,962.68378637,0.00018184,2]
[387499396,1758745832315,-538.32,0.00019168,3]
[387499398,1758745832325,-300.0,0.00019176,2]
[387499400,1758745832334,-300.0,0.00019176,2]
[387499402,1758745832344,-300.0,0.00019176,2]
[387499404,1758745832353,-1200.0,0.00019176,2]
[387499406,1758745832363,-155.0,0.00019177,2]
[387499408,1758745832373,-4023.25117134,0.00019177,2]
[387499410,1758745832382,-1000.0,0.00019177,2]
[387499412,1758745832391,-1000.0,0.00019177,2]
[387499414,1758745832401,-1000.0,0.00019177,2]
[387499416,1758745832411,-1000.0,0.00019177,2]
[387499418,1758745832420,-255.48817063,0.00019177,2]
[387499420,1758745832430,-517.17931726,0.00019177,2]
[387499422,1758745832440,-480.0,0.00019178,2]
[387499424,1758745832450,-480.0,0.00019178,2]
[387499426,1758745832460,-480.53523737,0.00019178,2]
[387499428,1758745832470,-480.58224186,0.00019178,2]
[387499430,1758745832479,-480.0,0.00019178,2]
[387499432,1758745832489,-311.20041475,0.00019178,2]
[387499434,1758745832499,-512.43092767,0.00019178,2]
[387499437,1758745832510,-480.0,0.00019178,2]
[387499439,1758745832520,-601.43,0.00019178,2]
[387499440,1758745832531,-480.0,0.00019178,2]
[387499442,1758745832542,-503.79414416,0.00019178,2]
[387499444,1758745832551,-480.0,0.00019178,2]
[387499446,1758745832561,-480.0,0.00019178,2]
[387499448,1758745832571,-480.0,0.00019178,2]
[387499450,1758745832580,-480.0,0.00019178,2]
[387499452,1758745832590,-480.0,0.00019178,2]
[387499454,1758745832599,-480.0,0.00019178,3]
[387499456,1758745832609,-480.0,0.00019178,2]
[387499458,1758745832618,-481.59823953,0.00019178,2]
[387499460,1758745832628,-480.0,0.00019178,2]
[387499462,1758745832637,-480.0,0.00019178,2]
[387499464,1758745832647,-480.0,0.00019178,2]
[387499466,1758745832656,-480.0,0.00019178,2]
[387499467,1758745832665,-480.0,0.00019178,2]
[387499468,1758745832675,-480.0,0.00019178,2]
[387499469,1758745832685,-480.0,0.00019178,2]
[387499470,1758745832695,-480.0,0.00019178,2]
[387499471,1758745832705,-599.94078453,0.00019178,2]
[387499472,1758745832714,-480.0,0.00019178,2]
[387499473,1758745832724,-481.00157961,0.00019178,2]
[387499474,1758745832733,-480.0,0.00019178,2]
[387499475,1758745832743,-480.0,0.00019178,2]
[387499476,1758745832753,-480.0,0.00019178,2]
[387499477,1758745832859,-480.0,0.00019178,2]